bitfinex/quotes_ETHUSD_20250420
["timestamp","ask_amount","ask_price","bid_price","bid_amount"]
[1745131644760,12.31235109,1602.0,1601.6,0.12745277]
[1745131644962,12.31195952,1602.1,1601.7,3.0]
[1745131645162,6.24163593,1602.2,1601.7,5.49726127]
[1745131645355,6.24197047,1602.1,1601.8,0.12687632]
[1745131645552,12.48334651,1602.2,1601.9,5.504]
[1745131645756,6.24141805,1602.2,1601.9,6.3181]
[1745131646067,6.24183965,1602.1,1602.0,0.12630002]
[1745131646456,7.49016542,1602.1,1602.0,0.12630002]
[1745131646652,7.49016542,1602.1,1602.0,5.63030002]
[1745131647075,7.49016542,1602.1,1602.0,0.12630002]
[1745131647469,7.49016542,1602.1,1601.5,0.8141]
[1745131647684,7.37599998,1602.0,1601.2,5.504]
[1745131647853,6.24474058,1601.4,1601.2,5.504]
[1745131648054,12.31474056,1601.4,1601.2,5.504]
[1745131648460,6.24492599,1601.3,1601.2,8.504]
[1745131648785,12.31454491,1601.4,1601.2,8.504]
[1745131648986,6.24492599,1601.3,1601.2,8.504]
[1745131649169,12.31474978,1601.4,1601.2,8.504]
[1745131649367,6.24492599,1601.3,1601.2,8.504]
[1745131649979,6.24492599,1601.3,1601.2,8.62792071]
[1745131650677,12.31469041,1601.4,1601.2,8.62892071]
[1745131650883,6.06999998,1601.4,1601.2,8.62892071]
[1745131651384,6.24492599,1601.3,1601.2,8.62892071]
[1745131651556,12.31484116,1601.4,1601.2,8.62892071]
[1745131651760,12.31481648,1601.4,1601.2,8.62892071]
[1745131651961,6.24492599,1601.3,1601.2,8.62892071]
[1745131652161,18.5596921,1601.4,1601.2,8.62892071]
[1745131652357,6.24492599,1601.3,1601.2,8.62892071]
[1745131652768,6.06999998,1601.4,1601.2,8.62892071]
[1745131652969,12.31473253,1601.4,1601.2,8.62892071]
[1745131653177,6.24492599,1601.3,1601.2,8.62892071]
[1745131654360,6.24531601,1601.2,1601.1,1e-08]
[1745131654670,6.86980861,1601.2,1601.1,1e-08]
[1745131655775,7.41980861,1601.2,1601.1,1e-08]
[1745131655987,13.48980859,1601.2,1601.1,1e-08]
[1745131656699,13.48980859,1601.2,1600.3,7.97425258]
[1745131656700,6.24677987,1600.9,1600.8,5.506]
[1745131656896,6.24660593,1600.9,1600.8,5.506]
[1745131657467,6.24760711,1600.7,1600.3,10.01350932]
[1745131657770,6.24760711,1600.7,1600.1,53.9876837]
[1745131657771,6.24851368,1600.4,1600.1,57.68762061]
[1745131657992,6.24851368,1600.4,1600.2,5.506]
[1745131658191,6.24830499,1600.5,1600.2,5.506]
[1745131658391,6.24847098,1600.4,1600.2,5.506]
[1745131658603,6.24825183,1600.5,1600.2,5.506]
[1745131659206,0.8017,1600.9,1600.4,0.8113]
[1745131659505,60.0,1601.3,1600.9,2.49859454]
[1745131659798,60.0,1601.3,1601.2,0.8113]
[1745131661070,66.24492599,1601.3,1601.1,3.0]
[1745131661284,66.24492599,1601.3,1601.2,5.507]
[1745131661483,60.0,1601.3,1601.2,5.507]
[1745131663787,66.24492599,1601.3,1601.2,5.507]
[1745131664720,60.0,1601.3,1601.2,5.507]
[1745131665622,66.24492599,1601.3,1601.2,5.507]
[1745131665920,60.0,1601.3,1601.2,5.507]
[1745131670201,60.0,1601.3,1601.2,8.8209264]
[1745131670407,60.0,1601.3,1601.2,6.3228]
[1745131670847,60.0,1601.3,1601.2,0.8158]
[1745131671004,60.0,1601.3,1601.2,6.4608]
[1745131671619,6.24477333,1601.4,1601.2,6.4608]
[1745131673909,6.24436701,1601.5,1601.2,6.4608]
[1745131674114,6.24457696,1601.4,1601.2,6.4608]
[1745131674933,6.24428081,1601.5,1601.2,6.4608]
[1745131675247,6.24428081,1601.5,1601.2,8.95892552]
[1745131675417,18.55785276,1601.6,1601.2,6.4608]
[1745131675623,18.55785276,1601.6,1601.2,8.95890408]
[1745131675833,6.24419693,1601.5,1601.3,3.0]
[1745131676038,12.31327514,1601.8,1601.4,2.49778426]
[1745131676243,14.24263765,1601.8,1601.5,3.7847]
[1745131676453,6.24339406,1601.7,1601.6,8.645]
[1745131678237,6.06999998,1601.8,1601.6,8.645]
[1745131678562,6.06999998,1601.8,1601.7,3.0]
[1745131678753,6.24236456,1602.0,1601.7,3.0]
[1745131680550,6.06999998,1602.1,1601.8,0.7847]
[1745131680743,6.06999998,1602.1,1601.8,3.28181763]
[1745131680945,6.06999998,1602.1,1601.8,56.77981763]
[1745131681343,6.06999998,1602.1,1601.9,5.49702165]
[1745131681664,7.06716119,1602.4,1601.9,5.49702165]
[1745131681665,7.06716119,1602.4,1602.0,8.14085731]
[1745131681838,46.36236439,1602.0,1601.9,3.28173477]
[1745131682165,46.36236439,1602.0,1601.9,8.92573477]
[1745131683756,46.36236439,1602.0,1601.9,11.92573477]
[1745131683968,46.36236439,1602.0,1601.9,6.28173477]
[1745131684273,46.36236439,1602.0,1601.9,11.92473477]
[1745131685073,46.36236439,1602.0,1601.9,11.9871524]
[1745131685279,46.36236439,1602.0,1601.9,11.92473477]
[1745131687373,46.36236439,1602.0,1601.9,12.47473477]
[1745131687681,12.30874826,1602.9,1602.6,3.0]
[1745131687850,6.2390816,1602.8,1602.7,5.643]
[1745131688185,7.30087481,1602.9,1602.7,5.643]
[1745131688368,6.2390816,1602.8,1602.7,5.643]
[1745131689885,6.23947089,1602.7,1602.4,3.7964]
[1745131690083,6.23947089,1602.7,1602.6,3.0]
[1745131690283,6.239314,1602.8,1602.4,3.7964]
[1745131690464,12.47871082,1602.8,1602.6,3.0]
[1745131690663,12.308887,1602.9,1602.6,3.06239609]
[1745131690863,12.308887,1602.9,1602.6,3.0]
[1745131692165,6.06999998,1602.9,1602.6,3.06239025]
[1745131692772,6.06999998,1602.9,1602.7,0.7964]
[1745131693603,6.84229998,1603.3,1602.8,3.0]
[1745131693771,6.23810167,1603.1,1602.9,5.641]
[1745131693968,6.92199877,1603.2,1602.9,5.641]
[1745131694187,6.92183419,1603.2,1603.0,3.7617]
[1745131694396,6.92183419,1603.2,1603.0,3.0]
[1745131694594,6.23791404,1603.1,1603.0,3.0]
[1745131694898,6.92199908,1603.2,1603.0,3.0]
[1745131696802,6.92199908,1603.2,1602.9,5.641]
[1745131697999,6.23793256,1603.1,1602.9,5.641]
[1745131698704,6.92201185,1603.2,1602.9,5.641]
[1745131699930,13.15985999,1603.2,1602.9,5.641]
[1745131700117,6.23804315,1603.1,1602.9,5.641]
[1745131701532,6.92201639,1603.2,1602.9,5.641]
[1745131702132,6.93012596,1603.1,1602.8,0.7617]
[1745131702301,6.23947089,1602.7,1602.6,53.47]
[1745131702502,6.23947089,1602.7,1602.6,59.042]
[1745131702912,7.01957089,1602.7,1602.6,59.042]
[1745131703135,8.95245249,1602.7,1602.6,59.042]
[1745131704222,15.02245247,1602.7,1602.6,53.47]
[1745131704421,15.02245247,1602.7,1602.6,59.043]
[1745131705302,6.24128431,1602.3,1601.9,60.3733]
[1745131705507,6.24157047,1602.2,1602.0,5.573]
[1745131705725,6.24157047,1602.2,1601.9,54.71132862]
[1745131705932,6.2408758,1602.4,1602.1,5.573]
[1745131707021,12.31044566,1602.5,1602.2,0.7863]
[1745131707521,6.24096421,1602.4,1602.2,0.7863]
[1745131707724,6.24087205,1602.4,1602.2,0.7863]
[1745131708663,12.48185782,1602.4,1602.2,0.7863]
[1745131708831,6.24087205,1602.4,1602.3,5.573]
[1745131709746,12.31048112,1602.5,1602.3,5.573]
[1745131710458,6.06999998,1602.5,1602.4,3.0]
[1745131711967,12.31024958,1602.5,1602.4,3.0]
[1745131712259,6.06999998,1602.5,1602.4,3.0]
[1745131712862,12.31024958,1602.5,1602.4,3.0]
[1745131713373,12.31024958,1602.5,1602.3,5.573]
[1745131713555,6.06999998,1602.5,1602.3,5.573]
[1745131713866,6.23999132,1602.6,1602.3,5.573]
[1745131714074,12.48013878,1602.6,1602.3,5.573]
[1745131714241,6.23999132,1602.6,1602.3,5.573]
[1745131714442,6.24029437,1602.5,1602.3,5.573]
[1745131714946,6.24029437,1602.5,1602.4,5.573]
[1745131716283,6.23999132,1602.6,1602.4,5.573]
[1745131716447,6.2402496,1602.5,1602.4,5.573]
[1745131718096,6.2402496,1602.5,1602.0,6.13]
[1745131718097,6.2407616,1602.4,1602.0,6.13]
[1745131718297,6.24168547,1602.2,1602.1,5.573]
[1745131718596,6.24168547,1602.2,1602.1,8.573]
[1745131718886,6.24128682,1602.3,1602.2,3.0]
[1745131719262,6.24128682,1602.3,1602.2,8.573]
[1745131722097,12.31086563,1602.4,1602.2,8.573]
[1745131722699,6.24102852,1602.3,1602.2,8.573]
[1745131722888,12.31086402,1602.4,1602.2,8.573]
[1745131723083,6.24102852,1602.3,1602.2,8.573]
[1745131723514,12.31086402,1602.4,1602.2,8.573]
[1745131723703,18.55188663,1602.4,1602.2,3.0]
[1745131724006,12.31086402,1602.4,1602.3,5.574]
[1745131725735,12.31086402,1602.4,1602.2,3.0]
[1745131726030,12.31086402,1602.4,1602.3,5.574]
[1745131726631,7.03472223,1602.3,1601.9,53.92502862]
[1745131726928,12.48338994,1602.2,1602.0,8.574]
[1745131727431,6.24180762,1602.1,1602.0,8.574]
[1745131727928,6.24180762,1602.1,1602.0,3.0]
[1745131728227,12.3118076,1602.1,1602.0,3.0]
[1745131728442,7.03569725,1602.0,1601.9,53.457]
[1745131728741,7.03569725,1602.0,1601.9,62.031]
[1745131729062,7.01786716,1602.0,1601.9,62.031]
[1745131729269,7.01786716,1602.0,1601.9,53.457]
[1745131729270,13.08786714,1602.0,1601.9,53.457]
[1745131729423,15.20636863,1602.0,1601.9,59.031]
[1745131730426,15.20636863,1602.0,1601.9,58.987]
[1745131731419,13.08786714,1602.0,1601.9,58.987]
[1745131734556,13.08786714,1602.0,1601.9,58.988]
[1745131735925,13.08786714,1602.0,1601.9,53.457]
[1745131736128,13.08786714,1602.0,1601.9,58.988]
[1745131736551,6.24414611,1601.5,1601.4,3.7988]
[1745131736757,6.24414611,1601.5,1601.4,9.3298]
[1745131739370,6.24414611,1601.5,1601.4,5.531]
[1745131739565,6.24453603,1601.4,1601.3,53.479]
[1745131739759,6.24453603,1601.4,1601.3,62.011]
[1745131741005,6.24414611,1601.5,1601.3,62.011]
[1745131741162,6.24453603,1601.4,1601.3,62.011]
[1745131742302,6.24453603,1601.4,1601.3,59.011]
[1745131746220,8.31570424,1601.4,1601.3,59.012]
[1745131748241,6.24453603,1601.4,1601.3,59.012]
[1745131748606,6.24453603,1601.4,1601.3,62.8374]
[1745131748914,12.31399745,1601.6,1601.4,3.0]
[1745131749131,6.24319707,1601.8,1601.5,0.8254]
[1745131749450,6.24365389,1601.7,1601.5,0.8254]
[1745131749605,6.24318621,1601.8,1601.5,0.8254]
[1745131751672,6.24393903,1601.6,1601.4,3.0]
[1745131752853,6.06999998,1602.0,1601.5,0.8254]
[1745131753053,13.13342761,1602.3,1601.7,2.07401541]
[1745131753260,6.89229998,1602.3,1601.8,5.533]
[1745131753462,13.13346211,1602.3,1601.8,5.533]
[1745131753923,0.5,1602.2,1601.8,5.533]
[1745131754954,0.5,1602.2,1602.0,0.8099]
[1745131755379,6.89229998,1602.3,1602.0,0.8099]
[1745131755655,6.06999998,1602.3,1602.0,0.8099]
[1745131756055,6.06999998,1602.3,1602.0,2.05833348]
[1745131756437,0.7808,1602.2,1602.1,5.532]
[1745131756834,6.67699998,1602.3,1602.1,6.00008954]
[1745131757027,6.06999998,1602.3,1602.2,5.532]
[1745131757462,6.82999998,1602.5,1602.2,5.532]
[1745131758457,6.06999998,1602.5,1602.2,6.3255]
[1745131759441,6.06999998,1602.5,1602.2,0.7935]
[1745131759639,13.14023896,1602.5,1602.1,53.95153597]
[1745131759869,13.14023896,1602.5,1602.2,5.532]
[1745131760966,6.89969998,1602.5,1602.2,5.532]
[1745131762900,13.13995858,1602.5,1602.2,5.532]
[1745131763785,7.0699586,1602.5,1602.2,5.532]
[1745131766600,6.24102852,1602.3,1602.2,5.532]
[1745131766820,6.2408097,1602.4,1602.2,5.504]
[1745131767787,6.24102852,1602.3,1602.2,5.504]
[1745131768826,6.2408097,1602.4,1602.2,5.504]
[1745131769525,6.06999998,1602.4,1602.2,5.504]
[1745131769819,12.31067922,1602.4,1602.2,5.504]
[1745131770505,6.24067924,1602.4,1602.2,5.504]
[1745131771814,7.70486646,1602.4,1602.2,5.504]
[1745131773714,1.46418722,1602.4,1602.2,5.504]
[1745131773902,7.07020777,1602.5,1602.2,5.504]
[1745131774108,0.8297,1602.5,1602.2,6.2697]
[1745131774325,7.0030136,1602.6,1602.2,6.2697]
[1745131774511,6.2401136,1602.6,1602.2,6.2697]
[1745131775201,13.07257174,1602.7,1602.2,6.2697]
[1745131775604,19.31234298,1602.7,1602.2,6.2697]
[1745131775804,0.5,1602.6,1602.2,6.2697]
[1745131776000,0.5,1602.6,1602.3,3.0]
[1745131776606,12.30952233,1602.7,1602.3,3.0]
[1745131778441,6.23929621,1602.8,1602.4,0.7657]
[1745131779137,13.07160618,1602.9,1602.4,2.01382726]
[1745131779347,6.06999998,1602.9,1602.6,0.7657]
[1745131779528,6.06999998,1602.9,1602.7,5.504]
[1745131779728,6.06999998,1603.1,1602.8,0.7657]
[1745131780212,12.30794366,1603.1,1602.8,0.7657]
[1745131780415,12.30794366,1603.1,1602.8,1.22622016]
[1745131784373,18.54615258,1603.1,1602.8,1.22622016]
[1745131784686,6.23837701,1603.0,1602.8,1.22622016]
[1745131787266,6.23830716,1603.0,1602.8,0.46052016]
[1745131787467,6.23830716,1603.0,1602.7,6.2697]
[1745131789334,6.23911205,1602.8,1602.7,0.46236237]
[1745131789608,6.23947089,1602.7,1602.5,53.465]
[1745131789776,6.23947089,1602.7,1602.6,5.502]
[1745131790306,6.23930478,1602.8,1602.6,5.502]
[1745131790469,12.4787278,1602.8,1602.6,5.502]
[1745131791366,6.23930478,1602.8,1602.6,5.502]
[1745131792775,6.23930478,1602.8,1602.7,0.779]
[1745131792972,6.23930478,1602.8,1602.6,5.502]
[1745131792973,6.23930478,1602.8,1602.6,6.281]
[1745131793373,12.47785202,1602.9,1602.6,6.74273907]
[1745131793575,12.30856327,1603.0,1602.7,0.7944]
[1745131794071,6.23869586,1602.9,1602.7,0.7944]
[1745131794698,12.30855749,1603.0,1602.7,0.7944]
[1745131795206,18.54716706,1603.0,1602.7,0.7944]
[1745131795598,12.30855749,1603.0,1602.7,0.7944]
[1745131795804,18.54717268,1603.0,1602.7,0.7944]
[1745131796406,6.23869925,1602.9,1602.7,0.7944]
[1745131796704,12.30855749,1603.0,1602.7,0.7944]
[1745131797191,6.06999998,1603.0,1602.7,0.7944]
[1745131797384,6.06999998,1603.0,1602.7,3.7944]
[1745131797698,12.30845542,1603.0,1602.7,3.7944]
[1745131798304,6.23892969,1602.9,1602.7,3.7944]
[1745131798478,6.23892969,1602.9,1602.7,3.0]
[1745131799202,13.11375542,1603.0,1602.7,3.0]
[1745131799378,19.35237521,1603.0,1602.7,3.0]
[1745131799778,19.35238736,1603.0,1602.7,3.0]
[1745131800279,6.06999998,1603.0,1602.7,3.0]
[1745131800478,6.06999998,1603.0,1602.8,0.8112]
[1745131800714,6.2373072,1603.3,1602.8,5.05900025]
[1745131800875,6.23726863,1603.3,1603.0,0.8112]
[1745131801081,6.23726863,1603.3,1603.1,5.442]
[1745131801082,13.13862493,1603.2,1603.1,5.442]
[1745131801811,6.23917692,1602.8,1602.5,54.2762]
[1745131802014,6.23958244,1602.7,1602.6,5.442]
[1745131803509,6.23932661,1602.8,1602.6,5.442]
[1745131804100,6.23932661,1602.8,1602.6,5.50439265]
[1745131804406,6.23908515,1602.8,1602.6,5.50439265]
[1745131804613,6.23908515,1602.8,1602.6,5.442]
[1745131805312,6.23892079,1602.9,1602.6,5.442]
[1745131805713,6.23908757,1602.8,1602.6,5.442]
[1745131806212,6.23892079,1602.9,1602.6,5.442]
[1745131806384,6.23910648,1602.8,1602.6,5.442]
[1745131807522,6.23892079,1602.9,1602.6,5.442]
[1745131807687,6.23922622,1602.8,1602.6,5.442]
[1745131808889,6.23892079,1602.9,1602.6,5.442]
[1745131809319,6.239109,1602.8,1602.6,5.442]
[1745131811620,6.23869705,1602.9,1602.6,5.442]
[1745131811836,6.23869705,1602.9,1602.6,5.50439022]
[1745131812059,6.23869705,1602.9,1602.6,5.442]
[1745131812342,12.47771347,1602.9,1602.6,5.442]
[1745131812653,12.47771347,1602.9,1602.7,5.442]
[1745131812835,12.47772338,1602.9,1602.7,5.442]
[1745131813039,6.23869705,1602.9,1602.7,5.442]
[1745131813425,12.47770677,1602.9,1602.7,5.442]
[1745131813743,6.23869705,1602.9,1602.7,5.442]
[1745131814147,12.47773823,1602.9,1602.7,5.442]
[1745131814317,6.23869705,1602.9,1602.7,5.442]
[1745131814711,12.47771977,1602.9,1602.7,5.442]
[1745131815144,6.23869705,1602.9,1602.7,5.442]
[1745131815646,6.2390816,1602.8,1602.7,5.442]
[1745131816437,6.23895262,1602.9,1602.7,5.442]
[1745131817649,12.47793754,1602.9,1602.7,5.442]
[1745131817849,6.23895262,1602.9,1602.7,5.442]
[1745131818062,12.47795406,1602.9,1602.7,5.442]
[1745131818253,6.23895262,1602.9,1602.7,5.442]
[1745131818645,12.47801865,1602.9,1602.7,5.442]
[1745131819557,12.47799082,1602.9,1602.7,5.442]
[1745131819855,6.23895262,1602.9,1602.8,5.442]
[1745131821151,12.47798357,1602.9,1602.6,3.0]
[1745131821352,12.47798357,1602.9,1602.7,5.442]
[1745131821536,6.2390816,1602.8,1602.7,8.442]
[1745131822638,6.2390816,1602.8,1602.7,3.0]
[1745131822842,6.2390816,1602.8,1602.7,8.388]
[1745131823066,6.2390816,1602.8,1602.7,3.0]
[1745131823244,6.2390816,1602.8,1602.7,8.388]
[1745131827873,6.2390816,1602.8,1602.7,3.0]
[1745131828031,6.2390816,1602.8,1602.7,8.388]
[1745131828574,6.23884113,1602.9,1602.7,9.1661]
[1745131829167,6.2390816,1602.8,1602.7,9.1661]
[1745131829875,6.2390816,1602.8,1602.7,8.388]
[1745131833892,7.48687387,1602.8,1602.7,5.388]
[1745131834490,6.23986022,1602.6,1602.5,56.9220549]
[1745131834788,6.23986022,1602.6,1602.5,62.3100549]
[1745131836594,6.23986022,1602.6,1602.5,56.9220549]
[1745131836757,6.23986022,1602.6,1602.5,62.3100549]
[1745131838762,8.2627072,1602.6,1602.5,58.853]
[1745131840666,8.2627072,1602.6,1602.5,58.854]
[1745131842798,14.33270718,1602.6,1602.5,58.854]
[1745131844088,14.33270718,1602.6,1602.5,5.389]
[1745131844666,14.33270718,1602.6,1602.2,0.46084449]
[1745131844667,6.24102182,1602.4,1602.2,0.46084449]
[1745131844867,6.24102182,1602.4,1602.3,5.389]
[1745131847902,6.24102182,1602.4,1602.3,8.389]
[1745131848964,6.24041558,1602.5,1602.4,0.7811]
[1745131851804,6.24041558,1602.5,1602.4,0.84350161]
[1745131852005,6.24001236,1602.6,1602.4,0.84350161]
[1745131852192,6.23971768,1602.7,1602.4,3.84350161]
[1745131852389,6.23988999,1602.6,1602.4,3.84350161]
[1745131852589,6.2402496,1602.5,1602.4,3.7811]
[1745131853302,6.24008633,1602.6,1602.4,3.7811]
[1745131853472,6.23971986,1602.7,1602.5,0.7811]
[1745131855198,6.23947612,1602.7,1602.5,0.7811]
[1745131855776,6.23923895,1602.8,1602.5,0.7811]
[1745131856170,6.23886312,1602.9,1602.5,2.0291447]
[1745131856171,6.23893124,1602.9,1602.5,2.0291447]
[1745131856373,6.23910889,1602.8,1602.5,0.7811]
[1745131859105,6.23883578,1602.9,1602.5,2.02914613]
[1745131859274,6.23883578,1602.9,1602.6,0.89388688]
[1745131859477,6.23883578,1602.9,1602.8,3.0]
[1745131859914,6.23947089,1602.7,1602.6,8.346]
[1745131860081,6.23947089,1602.7,1602.6,5.346]
[1745131860279,7.05547089,1602.7,1602.6,5.346]
[1745131868307,6.23947089,1602.7,1602.6,5.346]
[1745131873724,0.7667,1603.0,1602.6,8.346]
[1745131873927,6.23892939,1602.9,1602.7,0.7655]
[1745131874329,6.23848021,1603.0,1602.7,3.7655]
[1745131874529,12.47709037,1603.0,1602.7,3.7655]
[1745131874708,6.23870065,1602.9,1602.7,3.7655]
[1745131875104,6.23848021,1603.0,1602.7,4.24157101]
[1745131875426,6.23884051,1602.9,1602.7,4.24157101]
[1745131876432,6.23853255,1603.0,1602.7,4.24157101]
[1745131876612,6.23853255,1603.0,1602.8,0.7655]
[1745131877433,12.47722449,1603.0,1602.8,0.7655]
[1745131877636,6.23869237,1602.9,1602.8,0.7655]
[1745131878836,6.2390816,1602.8,1602.7,3.47607101]
[1745131879037,6.2390816,1602.8,1602.7,8.82107101]
[1745131879937,6.2390816,1602.8,1602.7,3.47607101]
[1745131880143,6.2390816,1602.8,1602.7,8.82107101]
[1745131882734,6.2390816,1602.8,1602.7,5.82107101]
[1745131883116,6.2390816,1602.8,1602.7,5.345]
[1745131885155,6.2390816,1602.8,1602.7,8.345]
[1745131886861,6.23853122,1603.0,1602.8,3.7813]
[1745131887558,6.23869237,1602.9,1602.8,3.7813]
[1745131888058,6.23853122,1603.0,1602.8,3.7813]
[1745131889051,6.23869237,1602.9,1602.8,3.7813]
[1745131890555,6.23853122,1603.0,1602.8,3.7813]
[1745131892633,12.47713893,1603.0,1602.8,3.7813]
[1745131892953,6.23853122,1603.0,1602.8,3.7813]
[1745131897375,6.23792567,1603.1,1602.8,3.7813]
[1745131897572,6.23792567,1603.1,1602.8,11.15910226]
[1745131898281,6.23765465,1603.2,1602.8,11.15910226]
[1745131898674,6.23777211,1603.2,1602.8,11.15910226]
[1745131898877,12.47562905,1603.2,1602.8,11.15910226]
[1745131899075,6.23777211,1603.2,1602.8,11.15907106]
[1745131899244,6.23777211,1603.2,1602.8,9.9113]
[1745131899444,6.23794188,1603.1,1602.8,9.9113]
[1745131899640,12.47563004,1603.2,1602.8,11.15910896]
[1745131900058,6.23794307,1603.1,1602.8,11.15910896]
[1745131900257,12.47562235,1603.2,1602.8,11.15910896]
[1745131900457,12.4756174,1603.2,1602.8,11.15910896]
[1745131900674,6.2379852,1603.1,1602.8,11.15910896]
[1745131900979,6.23777211,1603.2,1602.8,11.15910896]
[1745131901359,12.47564939,1603.2,1602.8,11.15910896]
[1745131901754,6.23793089,1603.1,1602.8,11.15910896]
[1745131902182,6.23777211,1603.2,1602.8,11.15910896]
[1745131902680,12.4756248,1603.2,1602.8,11.15910896]
[1745131903389,6.23777211,1603.2,1602.8,11.15910896]
[1745131903560,12.47563293,1603.2,1602.8,11.15910896]
[1745131904994,6.23793764,1603.1,1602.8,11.15910896]
[1745131905284,6.23772247,1603.2,1602.9,0.7819]
[1745131905462,12.47559808,1603.2,1602.9,0.7819]
[1745131906288,6.23798816,1603.1,1602.9,0.7819]
[1745131907195,6.23798816,1603.1,1603.0,5.318]
[1745131907585,6.23733646,1603.3,1603.1,3.0]
[1745131908496,6.23752495,1603.2,1603.1,3.0]
[1745131912472,6.23733646,1603.3,1603.1,3.0]
[1745131912982,6.23733646,1603.3,1603.1,3.7819]
[1745131915204,12.47482529,1603.3,1603.1,3.7819]
[1745131915398,12.47478859,1603.3,1603.1,3.7819]
[1745131916208,12.47477679,1603.3,1603.1,3.7819]
[1745131916406,6.23733646,1603.3,1603.1,3.7819]
[1745131916923,6.23733646,1603.3,1603.2,5.268]
[1745131919308,6.23733646,1603.3,1603.1,3.0]
[1745131919506,6.23830318,1603.0,1602.9,56.445]
[1745131919711,6.23830318,1603.0,1602.9,61.713]
[1745131921081,7.02260318,1603.0,1602.9,61.713]
[1745131923924,6.23830318,1603.0,1602.9,61.713]
[1745131924738,6.23808461,1603.1,1602.9,61.713]
[1745131925531,12.47631691,1603.1,1602.9,61.713]
[1745131925902,6.23830318,1603.0,1602.9,61.713]
[1745131931626,6.23830318,1603.0,1602.9,8.268]
[1745131933956,7.02710318,1603.0,1602.9,8.268]
[1745131934168,6.2390816,1602.8,1602.7,3.4724391]
[1745131934454,6.2390816,1602.8,1602.7,8.268]
[1745131937559,6.2390816,1602.8,1602.7,8.72683936]
[1745131938459,7.0278816,1602.8,1602.7,8.72683936]
[1745131938958,6.2390816,1602.8,1602.7,8.72683936]
[1745131939952,6.2390816,1602.8,1602.7,3.45883936]
[1745131940347,6.2390816,1602.8,1602.7,8.268]
[1745131940861,6.2390816,1602.8,1602.7,3.0]
[1745131941167,6.2390816,1602.8,1602.7,8.268]
[1745131942332,6.23872987,1602.9,1602.7,9.50557752]
[1745131942763,6.23849038,1603.0,1602.7,9.50557752]
[1745131944365,6.23812891,1603.1,1602.7,11.6829946]
[1745131944564,6.23812891,1603.1,1602.8,0.7675]
[1745131945132,6.99502891,1603.1,1602.7,11.20264551]
[1745131945460,6.23836439,1603.0,1602.7,9.49307752]
[1745131946861,6.99502891,1603.1,1602.8,5.245]
[1745131947194,6.23833411,1603.0,1602.8,5.245]
[1745131948987,6.23869237,1602.9,1602.8,8.245]
[1745131949768,6.23855796,1603.0,1602.8,8.245]
[1745131951756,6.23869237,1602.9,1602.8,8.245]
[1745131952187,6.23855796,1603.0,1602.8,8.245]
[1745131953161,6.23869237,1602.9,1602.8,8.245]
[1745131958167,6.23869237,1602.9,1602.3,6.9487]
[1745131958168,2.04892503,1602.9,1602.3,6.9487]
[1745131958372,6.24012827,1602.6,1602.5,5.245]
[1745131958974,6.24012827,1602.6,1602.5,8.245]
[1745131964226,6.24102852,1602.3,1602.2,0.46406933]
[1745131964394,6.24102852,1602.3,1602.2,8.246]
[1745131965015,6.24102852,1602.3,1602.2,5.246]
[1745131965422,6.24102852,1602.3,1602.2,8.246]
[1745131967899,6.24102852,1602.3,1602.2,8.70347783]
[1745131973138,6.24065985,1602.4,1602.3,3.0]
[1745131984676,6.24065985,1602.4,1602.3,8.225]
[1745131989764,6.24025593,1602.5,1602.3,8.225]
[1745131989969,12.4808055,1602.5,1602.3,8.225]
[1745131990265,6.24025593,1602.5,1602.3,8.225]
[1745131990636,6.24063904,1602.4,1602.3,8.225]
[1745131991139,6.24050846,1602.5,1602.3,8.225]
[1745131991339,6.24050846,1602.5,1602.4,0.7849]
[1745131992263,6.23986059,1602.6,1602.4,0.7849]
[1745131992636,6.23961571,1602.7,1602.4,0.7849]
[1745131992837,6.23961571,1602.7,1602.4,2.49616317]
[1745131993235,6.23961571,1602.7,1602.4,0.7849]
[1745131993638,6.23999242,1602.6,1602.4,0.7849]
[1745131993840,12.48016028,1602.6,1602.4,0.7849]
[1745131994068,6.23999242,1602.6,1602.4,0.7849]
[1745131995547,12.4794827,1602.7,1602.4,0.7849]
[1745131995865,6.23967721,1602.7,1602.4,0.7849]
[1745131996653,6.23967721,1602.7,1602.5,0.06239431]
[1745131997258,6.23986022,1602.6,1602.5,0.7849]
[1745131997442,6.23986022,1602.6,1602.4,6.13]
[1745131998573,0.8256,1602.9,1602.5,3.7849]
[1745131998787,6.23894001,1602.9,1602.6,0.7849]
[1745131998942,6.23894001,1602.9,1602.8,3.0]
[1745132002546,8.31228443,1602.9,1602.8,3.0]
[1745132005663,6.2390816,1602.8,1602.7,5.225]
[1745132005856,14.55114951,1602.9,1602.7,5.224]
[1745132006186,6.23925435,1602.8,1602.7,8.224]
[1745132020426,6.23925435,1602.8,1602.7,5.224]
[1745132020632,7.69440074,1602.8,1602.7,5.224]
[1745132029431,6.23925435,1602.8,1602.7,5.224]
[1745132060755,6.18925435,1602.8,1602.7,5.224]
[1745132071583,6.18925435,1602.8,1602.7,5.9962]
[1745132071957,6.23830555,1603.0,1602.8,3.0]
[1745132071958,6.23849943,1603.0,1602.8,3.0]
[1745132072371,12.47712033,1603.0,1602.8,3.0]
[1745132072583,6.23849943,1603.0,1602.8,3.0]
[1745132072779,6.23849943,1603.0,1602.9,0.7722]
[1745132074263,6.23813555,1603.1,1602.9,1.24221819]
[1745132076183,6.23813555,1603.1,1602.9,0.7722]
[1745132077063,6.23770365,1603.2,1602.9,0.7722]
[1745132077795,6.23736161,1603.3,1602.9,0.7722]
[1745132078087,6.23736161,1603.3,1603.0,0.7618]
[1745132078291,6.23736161,1603.3,1603.2,3.0]
[1745132078769,6.33688915,1603.4,1603.2,3.7996]
[1745132080762,12.57393793,1603.4,1603.2,3.7996]
[1745132080969,6.2371359,1603.3,1603.2,3.7996]
[1745132082510,6.2371359,1603.3,1603.2,3.0]
[1745132082711,6.33691318,1603.4,1603.2,3.7996]
[1745132082881,6.33691318,1603.4,1603.2,3.86196669]